fUSD/lending_fUSD_20240521
["ID","MTS","AMOUNT","RATE_DAILY","PERIOD"]
[327605403,1716251444084,-866.22,0.00038356,6]
[327605404,1716251444094,-1648.11,0.00038356,6]
[327605405,1716251444104,-500.0,0.00038356,6]
[327605406,1716251444114,-599.17,0.00038356,6]
[327605407,1716251444124,-689.15,0.00038356,6]
[327605408,1716251444134,-500.0,0.00038356,6]
[327605409,1716251444144,-500.0,0.00038356,6]
[327605410,1716251444154,-500.0,0.00038356,6]
[327605411,1716251444166,-938.76,0.00038356,6]
[327605412,1716251444175,-500.0,0.00038356,6]
[327605413,1716251444185,-1608.15,0.00038356,6]
[327605414,1716251444195,-500.0,0.00038356,6]
[327605415,1716251444204,-692.45,0.00038356,6]
[327605416,1716251444215,-500.0,0.00038356,6]
[327605417,1716251444225,-500.0,0.00038356,6]
[327605418,1716251444235,-500.0,0.00038356,6]
[327605419,1716251444245,-500.0,0.00038356,6]
[327605420,1716251444256,-500.0,0.00038356,6]
[327605421,1716251444266,-500.0,0.00038356,6]
[327605422,1716251444276,-630.55,0.00038356,6]
[327605423,1716251444286,-604.39,0.00038356,6]
[327605424,1716251444296,-933.58,0.00038356,6]
[327605425,1716251444307,-11563.34,0.00038356,6]
[327605426,1716251444316,-999.11,0.00038356,6]
[327605427,1716251444326,-500.0,0.00038356,6]
[327605429,1716251444336,-855.51,0.00038356,6]
[327605432,1716251444346,-500.0,0.00038356,6]
[327605434,1716251444355,-1823.92,0.00038356,6]
[327605435,1716251444365,-500.0,0.00038356,6]
[327605436,1716251444375,-1558.57,0.00038356,6]
[327605437,1716251444384,-1134.72,0.00038356,6]
[327605439,1716251444394,-500.0,0.00038356,6]
[327605441,1716251444404,-498.68,0.00038356,6]
[327605444,1716251444415,-500.0,0.00038356,6]
[327605445,1716251444424,-500.0,0.00038356,6]
[327605446,1716251444434,-2938.3,0.00038356,6]
[327605447,1716251444443,-500.0,0.00038356,6]
[327605448,1716251444454,-500.0,0.00038356,6]
[327605449,1716251444464,-500.0,0.00038356,6]
[327605450,1716251444473,-558.65,0.00038356,6]
[327605451,1716251444484,-1171.13,0.00038356,6]
[327605452,1716251444494,-500.0,0.00038356,6]
[327605453,1716251444504,-1448.49,0.00038356,6]
[327605454,1716251444514,-500.0,0.00038356,6]
[327605455,1716251444524,-897.46,0.00038356,6]
[327605456,1716251444535,-500.0,0.00038356,6]
[327605457,1716251444545,-942.52,0.00038356,6]
[327605458,1716251444555,-2464.65,0.00038356,6]
[327605459,1716251444565,-648.24,0.00038356,6]
[327605460,1716251444575,-500.0,0.00038356,6]
[327605461,1716251444586,-825.3,0.00038356,6]
[327605462,1716251444597,-908.23,0.00038356,6]
[327605463,1716251444607,-505.82,0.00038356,6]
[327605464,1716251444617,-500.0,0.00038356,6]
[327605465,1716251444627,-957.34,0.00038356,6]
[327605466,1716251444641,-792.74,0.00038356,6]
[327605467,1716251444651,-3066.08,0.00038356,6]
[327605468,1716251444667,-5389.99,0.00038356,6]
[327605469,1716251444677,-1773.53,0.00038356,6]
[327605470,1716251444687,-500.0,0.00038356,6]
[327605471,1716251444698,-6275.09,0.00038356,6]
[327605472,1716251444985,-500.0,0.00038356,6]
[327605473,1716251445001,-500.0,0.00038356,6]
[327605474,1716251445011,-500.0,0.00038356,6]
[327605475,1716251445022,-500.0,0.00038356,6]
[327605476,1716251445033,-768.88,0.00038356,6]
[327605477,1716251445043,-760.44,0.00038356,6]
[327605478,1716251445054,-887.96,0.00038356,6]
[327605479,1716251445064,-1778.03,0.00038356,6]
[327605480,1716251445074,-500.0,0.00038356,6]
[327605481,1716251445083,-1791.88,0.00038356,6]
[327605482,1716251445093,-500.0,0.00038356,6]
[327605483,1716251445102,-500.0,0.00038356,6]
[327605484,1716251445111,-500.0,0.00038356,6]
[327605485,1716251445121,-500.0,0.00038356,2]
[327605486,1716251445130,-1086.17,0.00038356,6]
[327605487,1716251445139,-500.0,0.00038356,6]
[327605488,1716251445148,-1465.79,0.00038356,6]
[327605489,1716251445159,-500.0,0.00038356,6]
[327605490,1716251445168,-1027.27,0.00038356,6]
[327605491,1716251445178,-1402.43,0.00038356,6]
[327605492,1716251445188,-1921.79,0.00038356,6]
[327605493,1716251445197,-1307.45,0.00038356,6]
[327605494,1716251445207,-1484.52,0.00038356,6]
[327605495,1716251445216,-500.0,0.00038356,6]
[327605496,1716251445225,-500.0,0.00038356,6]
[327605497,1716251445235,-31037.94,0.00038356,6]
[327605498,1716251445244,-3946.65,0.00038356,6]
[327605499,1716251445254,-762.87,0.00038356,6]
[327605500,1716251445264,-878.87,0.00038356,6]
[327605501,1716251445274,-1008.36,0.00038356,6]
[327605502,1716251445283,-536.09,0.00038356,6]
[327605503,1716251445293,-1665.95874143,0.00038356,6]
[327605504,1716251445307,-255.53745705,0.00038356,6]
[327605505,1716251445319,-419.6410628,0.00038356,6]
[327605506,1716251445331,-420.25335452,0.00038356,6]
[327605507,1716251445342,-1284.46871091,0.00038356,6]
[327605508,1716251445365,-785.60753978,0.00038356,6]
[327605509,1716251445377,-3511.99297866,0.00038356,6]
[327605510,1716251445389,-174.76015485,0.00038356,6]
[327605511,1716251445398,-500.0,0.00038356,6]
[327605512,1716251445410,-3289.63,0.00038356,6]
[327605513,1716251445419,-3025.89,0.00038356,6]
[327605514,1716251445429,-500.0,0.00038356,6]
[327605515,1716251445438,-703.51,0.00038356,6]
[327605516,1716251445448,-2157.3,0.00038356,6]
[327605517,1716251445457,-500.0,0.00038356,6]
[327605518,1716251445467,-773.69,0.00038356,6]
[327605519,1716251445477,-500.0,0.00038356,2]
[327605520,1716251445487,-3211.02,0.00038356,6]
[327605521,1716251445496,-705.32,0.00038356,6]
[327605522,1716251445506,-517.86,0.00038356,6]
[327605523,1716251445515,-533.62672926,0.00038356,6]
[327605524,1716251445527,-1817.79327074,0.00038356,6]
[327605525,1716251445537,-1117.45,0.00038356,6]
[327605526,1716251445547,-981.99,0.00038356,6]
[327605527,1716251445557,-528.22445011,0.00038356,6]
[327605528,1716251445567,-642.14,0.00038356,6]
[327605529,1716251445576,-500.0,0.00038356,6]
[327605530,1716251445586,-1065.99,0.00038356,6]
[327605531,1716251445595,-500.0,0.00038356,6]
[327605532,1716251445605,-2269.11,0.00038356,6]
[327605533,1716251445614,-500.0,0.00038356,6]
[327605534,1716251445624,-500.0,0.00038356,6]
[327605535,1716251445635,-500.0,0.00038356,6]
[327605536,1716251445645,-1279.14,0.00038356,6]
[327605537,1716251445655,-8972.99,0.00038356,6]
[327605538,1716251445667,-1568.55,0.00038356,6]
[327605539,1716251445677,-500.0,0.00038356,6]
[327605540,1716251445686,-500.0,0.00038356,6]
[327605541,1716251445695,-500.0,0.00038356,6]
[327605542,1716251445705,-500.0,0.00038356,6]
[327605543,1716251445715,-1359.52,0.00038356,6]
[327605544,1716251445724,-500.0,0.00038356,6]
[327605545,1716251445734,-500.0,0.00038356,6]
[327605546,1716251445743,-1401.11,0.00038356,6]
[327605547,1716251445753,-847.2,0.00038356,6]
[327605548,1716251445763,-1114.06,0.00038356,6]
[327605549,1716251445772,-500.0,0.00038356,6]
[327605550,1716251445781,-542.98,0.00038356,6]
[327605551,1716251445791,-677.29,0.00038356,6]
[327605552,1716251445800,-1353.79,0.00038356,6]
[327605553,1716251445809,-500.0,0.00038356,6]
[327605554,1716251445819,-841.87,0.00038356,6]
[327605555,1716251445828,-3907.87,0.00038356,6]
[327605556,1716251445837,-4709.21,0.00038356,6]
[327605557,1716251445847,-502.03,0.00038356,6]
[327605558,1716251445856,-500.0,0.00038356,6]
[327605559,1716251445866,-1285.86,0.00038356,6]
[327605560,1716251445875,-1940.73,0.00038356,6]
[327605561,1716251445885,-1162.42,0.00038356,6]
[327605562,1716251445896,-1744.52,0.00038356,6]
[327605563,1716251445906,-500.0,0.00038356,6]
[327605564,1716251445921,-1105.6,0.00038356,6]
[327605565,1716251445931,-5203.02,0.00038356,6]
[327605566,1716251445940,-500.0,0.00038356,6]
[327605567,1716251445951,-866.31,0.00038356,6]
[327605568,1716251445960,-2959.12,0.00038356,6]
[327605569,1716251445970,-2237.01,0.00038356,6]
[327605570,1716251445980,-674.42,0.00038356,6]
[327605571,1716251445990,-733.56,0.00038356,6]
[327605572,1716251446000,-1115.08,0.00038356,2]
[327605573,1716251446010,-500.0,0.00038356,6]
[327605574,1716251446020,-500.0,0.00038356,6]
[327605575,1716251446031,-2093.66,0.00038356,6]
[327605576,1716251446040,-500.0,0.00038356,6]
[327605577,1716251446050,-1454.15,0.00038356,6]
[327605578,1716251446059,-500.0,0.00038356,6]
[327605579,1716251446069,-1094.1,0.00038356,6]
[327605580,1716251446078,-1521.84,0.00038356,6]
[327605581,1716251446088,-500.0,0.00038356,6]
[327605583,1716251446098,-500.0,0.00038356,6]
[327605584,1716251446112,-684.11,0.00038356,6]
[327605585,1716251446123,-686.34,0.00038356,6]
[327605586,1716251446133,-573.81,0.00038356,6]
[327605587,1716251446143,-500.0,0.00038356,6]
[327605588,1716251446154,-3166.0,0.00038356,6]
[327605590,1716251446166,-1024.74,0.00038356,6]
[327605592,1716251446177,-1791.89,0.00038356,6]
[327605594,1716251446187,-500.0,0.00038356,6]
[327605596,1716251446197,-1131.42861122,0.00038356,6]
[327605598,1716251446340,-4568.03138878,0.00038356,6]
[327605599,1716251446351,-500.0,0.00038356,6]
[327605600,1716251446362,-546.07274782,0.00038356,6]
[327605623,1716251446942,-3019.63740638,0.00038256,2]
[327605626,1716251446954,-4480.36259362,0.00038256,2]
[327605628,1716251446964,-2498.39725218,0.00038356,6]
[327605630,1716251446974,-1260.65077078,0.00038356,6]
[327605634,1716251447005,-385.23525107,0.00038356,6]
[327605636,1716251447017,-26.89397815,0.00038356,6]
[327605638,1716251447028,-500.0,0.00038356,6]
[327605640,1716251447038,-500.0,0.00038356,6]
[327605642,1716251447048,-1198.59430158,0.00038356,6]
[327605644,1716251447060,-523.36569842,0.00038356,6]
[327605646,1716251447070,-143.98105962,0.00038356,6]
[327605650,1716251447094,-356.01894038,0.00038356,6]
[327605652,1716251447104,-500.0,0.00038356,6]
[327605654,1716251447114,-756.61,0.00038356,6]
[327605656,1716251447123,-897.10145962,0.00038356,6]
[327605660,1716251447147,-582.76854038,0.00038356,6]
[327605662,1716251447157,-1535.04,0.00038356,6]
[327605663,1716251447167,-500.0,0.00038356,6]
[327605666,1716251447177,-500.0,0.00038356,6]
[327605668,1716251447186,-1559.59,0.00038356,6]
[327605670,1716251447196,-500.0,0.00038356,6]
[327605672,1716251447205,-500.0,0.00038356,6]
[327605674,1716251447215,-500.0,0.00038356,6]
[327605676,1716251447224,-2236.41,0.00038356,6]
[327605678,1716251447234,-617.02,0.00038356,6]
[327605680,1716251447243,-5324.29280962,0.00038356,6]
[327605694,1716251447382,-1162.57719038,0.00038356,6]
[327605695,1716251447392,-2785.16,0.00038356,6]
[327605696,1716251447402,-16755.93,0.00038356,6]
[327605697,1716251447413,-500.0,0.00038356,6]
[327605698,1716251447423,-1241.47,0.00038356,6]
[327605699,1716251447432,-841.48,0.00038356,6]
[327605700,1716251447442,-500.0,0.00038356,6]
[327605701,1716251447451,-1316.58,0.00038356,6]
[327605702,1716251447460,-535.78,0.00038356,6]
[327605703,1716251447469,-711.83,0.00038356,6]
[327605704,1716251447478,-500.0,0.00038356,6]
[327605705,1716251447488,-680.54,0.00038356,6]
[327605706,1716251447497,-606.23967928,0.00038356,6]
[327605707,1716251447506,-500.0,0.00038356,6]
[327605708,1716251447516,-1538.96,0.00038356,6]
[327605709,1716251447525,-1688.49,0.00038356,6]
[327605710,1716251447535,-703.18,0.00038356,6]
[327605711,1716251447544,-9386.09,0.00038356,6]
[327605713,1716251447554,-991.12,0.00038356,6]
[327605714,1716251447563,-627.68,0.00038356,6]
[327605716,1716251447572,-687.31,0.00038356,6]
[327605718,1716251447581,-500.0,0.00038356,6]
[327605720,1716251447590,-2529.68,0.00038356,6]
[327605722,1716251447600,-500.0,0.00038356,6]
[327605725,1716251447610,-1896.67,0.00038356,6]
[327605727,1716251447619,-629.33,0.00038356,6]
[327605728,1716251447629,-1793.82,0.00038356,6]
[327605731,1716251447639,-2507.79,0.00038356,6]
[327605732,1716251447648,-17307.91,0.00038356,6]
[327605735,1716251447658,-500.0,0.00038356,6]
[327605736,1716251447670,-1433.57,0.00038356,6]
[327605738,1716251447679,-978.06,0.00038356,6]
[327605740,1716251447688,-500.0,0.00038356,6]
[327605742,1716251447697,-494.2517806,0.00038356,6]
[327605744,1716251447706,-500.0,0.00038356,6]
[327605746,1716251447715,-500.0,0.00038356,6]
[327605748,1716251447724,-577.28679863,0.00038356,6]
[327605750,1716251447733,-500.0,0.00038356,6]
[327605752,1716251447742,-682.9,0.00038356,6]
[327605754,1716251447752,-10955.78,0.00038356,6]
[327605756,1716251447761,-500.0,0.00038356,6]
[327605758,1716251447771,-500.0,0.00038356,6]
[327605760,1716251447780,-2328.78,0.00038356,6]
[327605762,1716251447790,-994.59,0.00038356,6]
[327605764,1716251447799,-500.0,0.00038356,6]
[327605766,1716251447808,-602.13,0.00038356,6]
[327605768,1716251447818,-2028.01,0.00038356,6]
[327605770,1716251447827,-500.0,0.00038356,6]
[327605772,1716251447836,-500.0,0.00038356,6]
[327605775,1716251447846,-667.77,0.00038356,6]
[327605776,1716251447855,-500.0,0.00038356,6]
[327605778,1716251447864,-1739.6,0.00038356,6]
[327605780,1716251447873,-500.0,0.00038356,6]
[327605783,1716251447883,-2536.9,0.00038356,6]
[327605785,1716251447892,-690.96,0.00038356,6]
[327605786,1716251447905,-518.55,0.00038356,6]
[327605788,1716251447917,-4829.56,0.00038356,6]
[327605790,1716251447927,-1704.74,0.00038356,6]
[327605793,1716251447936,-2754.3,0.00038356,6]
[327605795,1716251447946,-500.0,0.00038356,6]
[327605797,1716251447955,-500.0,0.00038356,6]
[327605799,1716251447964,-512.53068337,0.00038356,6]
[327605800,1716251447974,-4117.16,0.00038356,6]
[327605802,1716251447984,-1500.0,0.00038356,6]
[327605804,1716251447994,-500.0,0.00038356,6]
[327605806,1716251448003,-500.0,0.00038356,6]
[327605808,1716251448012,-889.48,0.00038356,6]
[327605810,1716251448022,-692.97,0.00038356,6]
[327605812,1716251448031,-1256.25,0.00038356,6]
[327605814,1716251448040,-2906.3,0.00038356,6]
[327605817,1716251448050,-636.09,0.00038356,6]
[327605818,1716251448059,-500.0,0.00038356,6]
[327605820,1716251448068,-726.42,0.00038356,6]
[327605822,1716251448077,-500.0,0.00038356,6]
[327605824,1716251448087,-2336.63,0.00038356,6]
[327605826,1716251448095,-416.90228149,0.00038356,6]
[327605828,1716251448107,-987.99,0.00038356,6]
[327605830,1716251448116,-500.0,0.00038356,6]
[327605832,1716251448125,-1461.94,0.00038356,6]
[327605834,1716251448135,-500.0,0.00038356,6]
[327605836,1716251448144,-500.0,0.00038356,6]
[327605838,1716251448153,-3165.26,0.00038356,6]
[327605840,1716251448164,-500.0,0.00038356,6]
[327605842,1716251448173,-500.0,0.00038356,6]
[327605844,1716251448182,-500.0,0.00038356,6]
[327605846,1716251448190,-500.0,0.00038356,6]
[327605848,1716251448200,-500.0,0.00038356,6]
[327605850,1716251448209,-3423.45,0.00038356,6]
[327605852,1716251448218,-2131.25,0.00038356,6]
[327605854,1716251448227,-500.0,0.00038356,6]
[327605856,1716251448236,-960.07,0.00038356,6]
[327605858,1716251448246,-5782.82,0.00038356,6]
[327605860,1716251448255,-953.4,0.00038356,6]
[327605862,1716251448265,-579.21,0.00038356,6]
[327605864,1716251448274,-1094.99,0.00038356,6]
[327605866,1716251448284,-500.0,0.00038356,6]
[327605868,1716251448293,-500.0,0.00038356,6]
[327605870,1716251448302,-1576.43,0.00038356,6]
[327605872,1716251448311,-1295.25,0.00038356,6]
[327605874,1716251448320,-4989.71,0.00038356,6]
[327605876,1716251448331,-2086.05,0.00038356,6]
[327605878,1716251448340,-2412.79,0.00038356,6]
[327605880,1716251448349,-1653.34,0.00038356,6]
[327605882,1716251448358,-500.0,0.00038356,6]
[327605883,1716251448368,-500.0,0.00038356,6]
[327605885,1716251448377,-500.0,0.00038356,6]
[327605887,1716251448386,-1049.87,0.00038356,6]
[327605889,1716251448395,-500.0,0.00038356,6]
[327605891,1716251448404,-500.0,0.00038356,6]
[327605893,1716251448414,-2352.79,0.00038356,6]
[327605895,1716251448423,-6218.2,0.00038356,6]
[327605897,1716251448432,-500.0,0.00038356,6]
[327605899,1716251448441,-500.0,0.00038356,6]
[327605901,1716251448450,-500.0,0.00038356,6]
[327605903,1716251448459,-500.0,0.00038356,6]
[327605905,1716251448468,-520.26,0.00038356,6]
[327605907,1716251448477,-500.0,0.00038356,6]
[327605909,1716251448486,-534.64,0.00038356,6]
[327605911,1716251448495,-500.0,0.00038356,6]
[327605913,1716251448503,-1569.14,0.00038356,6]
[327605915,1716251448512,-863.79,0.00038356,6]
[327605917,1716251448520,-2345.37,0.00038356,6]
[327605919,1716251448529,-3747.0,0.00038356,6]
[327605921,1716251448538,-1212.82,0.00038356,6]
[327605923,1716251448547,-3774.02,0.00038356,6]
[327605925,1716251448556,-500.0,0.00038356,6]
[327605927,1716251448565,-1022.64,0.00038356,6]
[327605929,1716251448574,-10146.12,0.00038356,6]
[327605931,1716251448583,-1053.61,0.00038356,6]
[327605933,1716251448592,-3132.38,0.00038356,6]
[327605935,1716251448601,-500.0,0.00038356,6]
[327605937,1716251448610,-815.41,0.00038356,6]
[327605938,1716251448619,-500.0,0.00038356,6]
[327605940,1716251448628,-2062.45,0.00038356,6]
[327605942,1716251448638,-1425.55,0.00038356,6]
[327605944,1716251448647,-500.0,0.00038356,6]
[327605947,1716251448657,-2000.0,0.00038356,30]
[327605949,1716251448667,-5655.32,0.00038356,6]
[327605950,1716251448676,-500.0,0.00038356,6]
[327605953,1716251448685,-523.2,0.00038356,6]
[327605955,1716251448695,-2780.83,0.00038356,6]
[327605956,1716251448704,-500.0,0.00038356,6]
[327605959,1716251448713,-1968.02,0.00038356,6]
[327605960,1716251448722,-500.0,0.00038356,6]
[327605962,1716251448732,-3911.95,0.00038356,6]
[327605964,1716251448741,-2488.85,0.00038356,6]
[327605966,1716251448751,-500.0,0.00038356,6]
[327605968,1716251448760,-2811.7,0.00038356,6]
[327605970,1716251448769,-500.0,0.00038356,6]
[327605973,1716251448778,-870.87,0.00038356,6]
[327605974,1716251448787,-1067.47,0.00038356,6]
[327605976,1716251448796,-516.62,0.00038356,6]
[327605978,1716251448805,-500.0,0.00038356,6]
[327605980,1716251448813,-500.0,0.00038356,6]
[327605982,1716251448822,-553.85,0.00038356,6]
[327605984,1716251448833,-822.28,0.00038356,6]
[327605986,1716251448842,-1323.2,0.00038356,6]
[327605988,1716251448851,-500.0,0.00038356,6]
[327605990,1716251448859,-500.0,0.00038356,6]
[327605992,1716251448868,-551.69,0.00038356,6]
[327605994,1716251448878,-576.1,0.00038356,6]
[327605996,1716251448887,-3765.45,0.00038356,6]
[327605998,1716251448896,-1752.05,0.00038356,6]
[327606000,1716251448905,-2816.84,0.00038356,6]
[327606002,1716251448920,-3504.32,0.00038356,6]
[327606004,1716251448928,-4387.75,0.00038356,6]
[327606006,1716251448938,-908.42,0.00038356,6]
[327606008,1716251448947,-1285.91,0.00038356,6]
[327606010,1716251448956,-500.0,0.00038356,6]
[327606012,1716251448965,-500.0,0.00038356,6]
[327606014,1716251448974,-2306.59,0.00038356,6]
[327606016,1716251448983,-500.0,0.00038356,6]
[327606018,1716251448995,-500.0,0.00038356,6]
[327606020,1716251449005,-627.67,0.00038356,6]
[327606022,1716251449014,-176.06453139,0.0003839,2]
[327606024,1716251449023,-150.0,0.00038428,2]
[327606026,1716251449032,-187.3569466,0.0003843,11]
[327606028,1716251449041,-1727.66885119,0.0003843,11]
[327606030,1716251449050,-3000.0,0.0003851,2]
[327606032,1716251449059,-535.64215388,0.0003853,2]
[327606033,1716251449068,-499.55820237,0.0003853,2]
[327606035,1716251449077,-2020.4562,0.0003853,2]
[327606037,1716251449087,-500.0,0.0003853,2]
[327606039,1716251449096,-2968.4517,0.0003853,2]
[327606041,1716251449107,-4225.952,0.0003853,2]
[327606043,1716251449117,-13538.28,0.0003853,2]
[327606045,1716251449126,-74357.7473,0.0003853,2]
[327606047,1716251449136,-155.67,0.00038575,2]
[327606050,1716251449146,-176.06453139,0.00038579,2]
[327606051,1716251449155,-150.5,0.000386,15]
[327606053,1716251449165,-1000.0,0.000386,14]
[327606056,1716251449175,-1727.66885119,0.00038605,12]
[327606057,1716251449183,-156.0,0.0003861,15]
[327606059,1716251449192,-150.5,0.0003861,15]
[327606061,1716251449201,-150.5,0.0003862,15]
[327606063,1716251449210,-150.5,0.0003862,15]
[327606064,1716251449219,-1385.64856306,0.00038627,4]
[327606065,1716251449228,-1271.64454544,0.00038627,4]
[327606066,1716251449238,-325.12836584,0.00038627,4]
[327606067,1716251449247,-900.95483015,0.00038628,4]
[327606068,1716251449255,-207.06147927,0.00038628,4]
[327606069,1716251449265,-3602.13327045,0.00038628,4]
[327606070,1716251449274,-534.28456702,0.00038628,4]
[327606071,1716251449283,-170.412667,0.00038628,30]
[327606072,1716251449292,-1070.78103849,0.00038628,30]
[327606073,1716251449301,-350.56618767,0.00038628,2]
[327606075,1716251449310,-500.0,0.00038628,6]
[327606077,1716251449319,-500.0,0.00038628,6]
[327606079,1716251449328,-500.0,0.00038628,6]
[327606081,1716251449337,-500.0,0.00038628,6]
[327606083,1716251449346,-500.0,0.00038628,6]
[327606085,1716251449354,-991.83,0.00038628,2]
[327606087,1716251449363,-786.37685929,0.00038629,4]
[327606089,1716251449372,-1152402.36514694,0.00038629,2]
[327606091,1716251449381,-324.58,0.00038629,6]
[327606093,1716251449391,-156626.62906459,0.0003863,15]
[327606095,1716251449399,-500.0,0.0003863,6]
[327606097,1716251449408,-500.0,0.0003863,6]
[327606098,1716251449419,-500.0,0.0003863,6]
[327606101,1716251449428,-500.0,0.0003863,6]
[327606102,1716251449437,-550.85,0.0003863,6]
[327606104,1716251449446,-873.14,0.0003863,6]
[327606106,1716251449456,-500.0,0.0003863,6]
[327606108,1716251449466,-520.78,0.0003863,6]
[327606110,1716251449475,-500.0,0.0003863,6]
[327606112,1716251449486,-500.0,0.0003863,6]
[327606113,1716251449495,-500.0,0.0003863,6]
[327606115,1716251449504,-500.0,0.0003863,6]
[327606117,1716251449513,-500.0,0.0003863,6]
[327606119,1716251449523,-500.0,0.0003863,6]
[327606121,1716251449532,-167.6592809,0.0003863,6]
[327606123,1716251449542,-500.0,0.0003863,6]
[327606125,1716251449551,-982.49,0.0003863,6]
[327606126,1716251449560,-563.38,0.0003863,6]
[327606128,1716251449569,-500.0,0.0003863,6]
[327606130,1716251449578,-500.0,0.0003863,6]
[327606132,1716251449587,-500.0,0.0003863,6]
[327606134,1716251449596,-462.04847914,0.0003863,6]
[327606136,1716251449607,-650.8,0.0003863,6]
[327606138,1716251449616,-613.19,0.0003863,6]
[327606140,1716251449625,-500.0,0.0003863,6]
[327606142,1716251449634,-500.0,0.0003863,6]
[327606144,1716251449643,-500.0,0.0003863,6]
[327606145,1716251449652,-530.6,0.0003863,6]
[327606147,1716251449662,-529.18,0.0003863,6]
[327606149,1716251449673,-588.88,0.0003863,6]
[327606151,1716251449682,-500.0,0.0003863,6]
[327606153,1716251449691,-500.0,0.0003863,6]
[327606155,1716251449701,-500.0,0.0003863,6]
[327606157,1716251449711,-741.25,0.0003863,6]
[327606159,1716251449720,-500.0,0.0003863,6]
[327606161,1716251449730,-500.0,0.0003863,6]
[327606163,1716251449739,-550.19,0.0003863,6]
[327606165,1716251449748,-500.0,0.0003863,6]
[327606167,1716251449758,-500.0,0.0003863,6]
[327606169,1716251449767,-500.0,0.0003863,6]
[327606171,1716251449776,-679.64,0.0003863,6]
[327606172,1716251449785,-593.91,0.0003863,6]
[327606174,1716251449795,-539.97,0.0003863,6]
[327606176,1716251449804,-500.0,0.0003863,6]
[327606178,1716251449813,-500.0,0.0003863,6]
[327606180,1716251449823,-500.0,0.0003863,6]
[327606182,1716251449832,-500.0,0.0003863,6]
[327606184,1716251449841,-609.78,0.0003863,6]
[327606186,1716251449851,-500.0,0.0003863,6]
[327606188,1716251449860,-500.0,0.0003863,6]
[327606190,1716251449870,-500.0,0.0003863,6]
[327606192,1716251449879,-500.0,0.0003863,6]
[327606194,1716251449888,-500.0,0.0003863,6]
[327606196,1716251449898,-500.0,0.0003863,6]
[327606198,1716251449913,-500.0,0.0003863,6]
[327606199,1716251449924,-500.0,0.0003863,6]
[327606201,1716251449934,-500.0,0.0003863,6]
[327606203,1716251449945,-500.0,0.0003863,6]
[327606205,1716251449955,-598.79,0.0003863,6]
[327606208,1716251449965,-745.97,0.0003863,6]
[327606209,1716251449974,-500.0,0.0003863,6]
[327606211,1716251449985,-500.0,0.0003863,6]
[327606213,1716251449995,-500.0,0.0003863,6]
[327606215,1716251450004,-500.0,0.0003863,6]
[327606217,1716251450014,-500.0,0.0003863,6]
[327606219,1716251450023,-500.48,0.0003863,6]
[327606221,1716251450033,-500.0,0.0003863,6]
[327606223,1716251450043,-500.0,0.0003863,6]
[327606225,1716251450052,-527.47430023,0.0003863,6]
[327606227,1716251450061,-500.0,0.0003863,6]
[327606229,1716251450070,-583.23,0.0003863,6]
[327606231,1716251450080,-500.0,0.0003863,6]
[327606233,1716251450089,-500.0,0.0003863,6]
[327606235,1716251450098,-776.5,0.0003863,6]